bitfinex/quotes_SOLUSD_20240614
["timestamp","ask_amount","ask_price","bid_price","bid_amount"]
[1718377259001,22.9911,144.84,144.78,5.1111]
[1718377259206,2.5547,144.83,144.78,15.3334]
[1718377259399,2.5547,144.83,144.78,7.6666]
[1718377259706,22.9884,144.86,144.75,0.17]
[1718377259886,22.9863,144.87,144.81,5.1099]
[1718377260094,17.8783,144.87,144.81,2.555]
[1718377260288,25.5391,144.88,144.83,2.5546]
[1718377260604,2.5539,144.88,144.83,15.328]
[1718377260900,116.4093,144.93,144.82,0.17]
[1718377261104,17.8723,144.92,144.83,0.17]
[1718377261288,7.6599,144.91,144.86,2.554]
[1718377261476,17.8725,144.92,144.86,15.325]
[1718377261477,22.979,144.92,144.86,15.325]
[1718377261683,2.5535,144.9,144.85,8.0029]
[1718377261877,100.0,144.93,144.83,0.17]
[1718377262102,2.5542,144.86,144.82,0.17]
[1718377262304,100.0,144.91,144.81,8.8059]
[1718377262305,100.0,144.91,144.81,6.251]
[1718377262606,100.0,144.95,144.83,0.17]
[1718377262814,5.1067,144.91,144.85,5.1084]
[1718377262980,100.0,144.93,144.85,5.1084]
[1718377262981,25.5352,144.9,144.85,2.5543]
[1718377263181,7.6607,144.9,144.85,7.663]
[1718377263400,22.9803,144.91,144.85,12.7717]
[1718377263705,6.251,144.96,144.88,7.6613]
[1718377263895,22.9754,144.94,144.89,2.5536]
[1718377264092,2.5528,144.94,144.89,7.6609]
[1718377264300,2.5527,144.94,144.89,25.5362]
[1718377264494,2.553,144.93,144.88,2.5537]
[1718377264688,2.553,144.93,144.87,7.6617]
[1718377264689,2.5531,144.92,144.87,25.539]
[1718377264997,7.6583,144.94,144.88,22.9839]
[1718377265321,2.5526,144.95,144.9,7.66]
[1718377265486,2.5524,144.96,144.91,7.6596]
[1718377265691,2.5524,144.96,144.91,25.5318]
[1718377265992,2.5524,144.96,144.91,7.6596]
[1718377266403,2.552,144.99,144.94,10.211]
[1718377266624,7.6559,144.99,144.94,2.5526]
[1718377266919,7.6558,144.99,144.94,2.5527]
[1718377267119,7.6561,144.98,144.93,7.6584]
[1718377267424,2.5519,144.99,144.94,7.6581]
[1718377267639,2.5518,145.0,144.95,2.5525]
[1718377267795,100.0,145.05,144.94,0.34]
[1718377267996,2.5516,145.01,144.96,7.6568]
[1718377268202,10.2052,145.03,144.96,7.657]
[1718377268439,7.6542,145.02,144.97,7.6565]
[1718377268600,2.5512,145.03,144.98,7.656]
[1718377268796,2.5517,145.0,144.95,2.8924]
[1718377269000,2.5517,145.0,144.94,2.5527]
[1718377269001,2.5519,144.99,144.94,2.5527]
[1718377269399,17.86,145.02,144.96,5.1047]
[1718377269605,2.5515,145.01,144.96,25.5234]
[1718377269917,100.0,145.03,144.94,2.5526]
[1718377270124,2.5519,144.99,144.94,7.658]
[1718377270431,2.5523,144.97,144.92,2.553]
[1718377270634,2.5523,144.97,144.92,7.6592]
[1718377270809,7.657,144.97,144.91,12.7663]
[1718377271000,17.8638,144.99,144.94,2.5527]
[1718377271199,2.552,144.98,144.93,25.5289]
[1718377271415,7.6554,145.0,144.95,2.5525]
[1718377271621,0.17,145.02,144.95,7.6578]
[1718377271622,10.2055,145.02,144.95,7.6578]
[1718377271836,7.6546,145.01,144.96,2.5524]
[1718377272149,100.0,145.05,144.89,27.2886]
[1718377272316,2.5512,145.03,144.98,2.5519]
[1718377272634,2.5512,145.03,144.98,7.656]
[1718377272798,25.5107,145.04,144.99,2.5518]
[1718377273002,2.5512,145.03,144.98,25.5204]
[1718377273431,5.1022,145.04,144.97,17.8651]
[1718377273729,2.5512,145.03,144.98,25.5198]
[1718377273899,100.0,145.04,144.96,0.17]
[1718377274100,2.5517,145.0,144.95,35.4339]
[1718377274327,2.5516,145.01,144.96,7.6571]
[1718377274528,0.17,145.03,144.95,15.0143]
[1718377274743,2.5519,144.99,144.94,2.8926]
[1718377275031,17.8612,145.01,144.95,2.5525]
[1718377275208,17.8612,145.01,144.94,7.9981]
[1718377275209,2.5513,145.02,144.97,7.6564]
[1718377275414,7.6532,145.04,144.98,22.9681]
[1718377275599,2.5514,145.02,144.97,7.6564]
[1718377275801,7.6539,145.03,144.98,2.552]
[1718377276033,7.6539,145.03,144.98,7.6561]
[1718377276226,2.5513,145.02,144.97,25.522]
[1718377276402,7.6539,145.03,144.98,2.552]
[1718377276597,2.5514,145.02,144.97,15.3132]
[1718377276822,25.5128,145.03,144.98,2.552]
[1718377277017,22.9615,145.03,144.97,22.9699]
[1718377277214,22.961,145.03,144.97,22.9699]
[1718377277420,100.0,145.06,144.97,22.9697]
[1718377277632,2.5518,145.0,144.95,7.6577]
[1718377277814,17.8625,145.0,144.94,10.211]
[1718377278016,0.17,145.01,144.91,23.2569]
[1718377278219,15.3138,144.97,144.92,2.5529]
[1718377278534,10.2088,144.98,144.92,2.5529]
[1718377278535,22.9696,144.98,144.92,22.978]
[1718377278828,2.5521,144.98,144.93,7.6587]
[1718377279033,25.518,145.0,144.95,2.5526]
[1718377279224,100.17,145.05,144.91,15.5972]
[1718377279225,100.0,145.04,144.91,15.5972]
[1718377279423,15.3094,145.01,144.95,25.5246]
[1718377279730,2.5515,145.01,144.96,7.6571]
[1718377279928,22.964,145.01,144.95,22.9723]
[1718377280108,7.6551,145.0,144.95,7.6574]
[1718377280309,25.5159,145.01,144.96,2.5524]
[1718377280504,22.9642,145.01,144.95,25.5254]
[1718377280706,100.0,145.04,144.91,15.5972]
[1718377281009,2.5517,145.0,144.95,25.525]
[1718377281206,10.2046,145.04,144.92,0.68]
[1718377281420,100.0,145.06,144.96,7.6571]
[1718377281648,7.6528,145.05,145.0,2.5516]
[1718377281824,7.6528,145.05,144.99,22.9661]
[1718377281825,2.551,145.04,144.99,22.9661]
[1718377282136,2.551,145.04,144.99,7.6554]
[1718377282137,7.6532,145.04,144.99,7.6554]
[1718377282455,7.6531,145.04,144.99,15.3109]
[1718377282738,27.8908,145.07,145.02,5.1027]
[1718377282958,7.6511,145.08,145.03,7.6534]
[1718377283241,15.302,145.08,145.03,2.5511]
[1718377283544,2.5505,145.07,145.02,17.8589]
[1718377283714,15.3021,145.08,145.03,2.5511]
[1718377283911,2.5504,145.08,145.03,15.3067]
[1718377284140,15.3019,145.08,145.03,2.551]
[1718377284521,7.6503,145.1,145.0,0.17]
[1718377284724,10.1998,145.1,145.0,0.68]
[1718377284927,7.6506,145.09,145.04,7.6529]
[1718377285111,7.6506,145.09,145.04,22.959]
[1718377285112,2.5502,145.09,145.04,22.959]
[1718377285317,2.5502,145.09,145.04,25.5098]
[1718377285517,16.6331,145.11,145.0,0.68]
[1718377285720,2.5503,145.08,145.03,25.5115]
[1718377285951,22.9519,145.09,145.03,25.5115]
[1718377285952,2.5502,145.09,145.04,7.6529]
[1718377286133,2.5502,145.09,145.05,2.5508]
[1718377286332,7.65,145.1,145.05,2.5507]
[1718377286539,16.6331,145.11,145.02,0.17]
[1718377286756,15.3,145.1,145.05,2.5507]
[1718377286924,7.6501,145.1,145.05,7.6523]
[1718377287126,22.9497,145.1,145.04,22.9587]
[1718377287324,17.8499,145.1,145.05,2.5507]
[1718377287547,0.17,145.1,145.02,12.7561]
[1718377287863,2.5511,145.04,144.99,22.6796]
[1718377288143,5.1013,145.06,145.0,7.6548]
[1718377288349,22.9553,145.07,145.02,2.5513]
[1718377288523,17.8501,145.1,145.04,2.5509]
[1718377288725,7.651,145.08,145.03,7.6531]
[1718377288950,2.5504,145.08,145.03,15.3066]
[1718377289449,2.5504,145.08,145.03,7.6532]
[1718377289747,2.5504,145.08,145.03,15.3067]
[1718377290350,7.6507,145.09,145.04,7.653]
[1718377290651,2.5503,145.08,145.03,25.5113]
[1718377290860,7.6509,145.08,145.03,7.6531]
[1718377291030,15.3018,145.08,145.03,2.551]
[1718377291235,0.17,145.08,144.99,15.0241]
[1718377291460,0.17,145.08,144.9,20.68]
[1718377291461,2.5512,145.03,144.98,25.5203]
[1718377291748,22.9598,145.04,144.99,2.5518]
[1718377291926,7.6522,145.06,145.01,2.5514]
[1718377292134,22.9551,145.07,145.01,15.309]
[1718377292322,2.5506,145.06,145.01,22.9635]
[1718377292537,7.6514,145.07,145.02,7.6538]
[1718377292736,2.5504,145.07,145.02,15.3079]
[1718377292924,15.3053,145.05,145.0,2.5516]
[1718377293146,17.8524,145.08,145.02,22.9619]
[1718377293341,100.17,145.1,144.99,7.9956]
[1718377293548,0.17,145.07,144.98,22.9679]
[1718377293854,25.5105,145.04,144.99,2.5518]
[1718377294030,2.5512,145.03,144.98,25.5203]
[1718377294225,0.17,145.09,144.97,0.17]
[1718377294455,2.5507,145.06,144.97,0.68]
[1718377294748,2.5507,145.06,145.02,2.5513]
[1718377294951,2.5507,145.06,145.01,22.9636]
[1718377295127,2.5507,145.06,145.01,25.5149]
[1718377295329,22.9532,145.08,145.02,15.3078]
[1718377295524,7.652,145.06,145.01,7.6543]
[1718377295837,2.5507,145.06,145.01,25.515]
[1718377296140,2.5507,145.06,145.02,2.5513]
[1718377296342,2.5506,145.07,145.02,7.654]
[1718377296532,2.5507,145.06,145.02,2.5513]
[1718377296728,2.5507,145.06,145.01,22.963]
[1718377296940,22.9549,145.07,145.02,2.5513]
[1718377297159,2.5502,145.09,145.0,0.34]
[1718377297459,7.6505,145.09,145.04,7.6528]
[1718377297840,15.3018,145.08,145.03,2.551]
[1718377298147,7.6507,145.09,145.04,7.6529]
[1718377298349,2.5503,145.08,145.04,2.5509]
[1718377298549,25.5019,145.09,145.04,2.5509]
[1718377298876,100.0,145.14,145.03,45.3386]
[1718377298877,2.5499,145.1,145.05,25.5077]
[1718377299043,22.9487,145.11,145.06,2.5506]
[1718377299044,25.4985,145.11,145.06,2.5506]
[1718377299242,100.0,145.14,145.05,23.127]
[1718377299243,2.5494,145.13,145.05,0.17]
[1718377299554,15.2956,145.14,145.09,2.55]
[1718377299743,7.6478,145.14,145.09,15.3004]
[1718377299935,34.2734,145.15,145.1,2.5499]
[1718377300153,2.5494,145.14,145.09,5.1002]
[1718377300366,121.4725,145.19,145.08,17.8515]
[1718377300367,22.9407,145.16,145.1,22.949]
[1718377300540,2.5494,145.13,145.1,0.17]
[1718377300740,2.5496,145.12,145.08,0.34]
[1718377301039,2.5496,145.12,145.07,7.6511]
[1718377301040,2.5496,145.12,145.07,22.9538]
[1718377301254,100.0,145.14,145.06,0.17]
[1718377301451,15.3,145.1,145.05,2.5508]
[1718377301649,7.6501,145.1,145.05,15.3049]
[1718377301967,17.8493,145.11,145.05,15.3049]
[1718377301968,25.4989,145.11,145.06,2.5506]
[1718377302264,100.0,145.11,145.04,0.17]
[1718377302442,7.6521,145.06,145.01,2.5514]
[1718377302642,10.2034,145.05,145.0,2.5516]
[1718377302865,2.5509,145.05,145.0,15.3101]
[1718377303036,2.5509,145.05,144.99,30.3913]
[1718377303037,2.5507,145.06,145.01,25.515]
[1718377303243,22.9547,145.07,145.02,2.5512]
[1718377303457,15.9378,145.12,144.99,22.7358]
[1718377303638,7.6493,145.11,145.06,7.6517]
[1718377303837,7.6493,145.11,145.06,2.5505]
[1718377304045,33.7854,145.12,144.99,22.7358]
[1718377304046,15.9378,145.12,144.99,43.4158]
[1718377304284,2.5494,145.13,145.08,15.3014]
[1718377304578,2.5493,145.14,145.09,7.6501]
[1718377304758,15.5522,145.16,145.11,2.5496]
[1718377305080,7.6474,145.15,145.1,7.6497]
[1718377305245,22.9418,145.15,145.1,2.5499]
[1718377305436,15.5522,145.16,145.01,20.0]
[1718377305645,17.8479,145.12,145.07,7.6513]
[1718377305844,7.6491,145.12,145.07,2.5504]
[1718377306043,15.2979,145.12,145.07,2.5504]
[1718377306258,7.6491,145.12,145.07,15.3026]
[1718377306454,2.5497,145.12,145.07,22.954]
[1718377306745,15.2977,145.12,145.07,7.6512]
[1718377306955,25.4961,145.12,145.07,2.5504]
[1718377307163,7.6489,145.12,145.07,7.6513]
[1718377307372,7.6489,145.12,145.08,2.5502]
[1718377307373,2.5496,145.12,145.08,2.5502]
[1718377307562,5.0992,145.12,145.07,7.6511]
[1718377307872,7.6488,145.12,145.07,7.651]
[1718377308069,2.5497,145.11,145.06,25.5055]
[1718377308371,2.5497,145.11,145.07,2.5504]
[1718377308558,7.6489,145.12,145.07,7.6513]
[1718377308867,7.6485,145.13,145.08,7.6508]
[1718377309072,7.6488,145.12,145.07,25.5043]
[1718377309269,7.6488,145.12,145.05,0.34]
[1718377309270,7.6495,145.11,145.06,7.6518]
[1718377309472,22.9472,145.12,145.07,2.5504]
[1718377309780,22.9472,145.12,145.06,25.506]
[1718377309781,2.5498,145.11,145.06,25.506]
[1718377309947,2.5503,145.08,145.03,25.5109]
[1718377310149,100.0,145.14,144.97,26.15433279]
[1718377310150,2.5499,145.11,144.97,26.15433279]
[1718377310369,2.5499,145.11,145.06,7.6517]
[1718377310370,7.6495,145.11,145.06,7.6517]
[1718377310883,15.2988,145.11,145.06,2.5505]
[1718377311078,2.5503,145.08,145.04,2.5509]
[1718377311254,25.5003,145.1,145.05,2.5508]
[1718377311466,5.1001,145.1,145.05,2.5508]
[1718377311679,7.6499,145.1,145.05,25.5074]
[1718377311880,7.6504,145.09,145.04,5.4418]
[1718377312087,7.6504,145.09,145.03,2.5511]
[1718377312088,10.2014,145.08,145.03,2.5511]
[1718377312376,22.9548,145.07,145.02,7.6539]
[1718377312575,22.9522,145.09,145.03,17.8577]
[1718377312762,2.5505,145.07,145.02,22.9613]
[1718377312966,22.9547,145.07,145.01,17.86]
[1718377313174,100.0,145.1,145.0,46.0375]
[1718377313367,7.6532,145.04,145.0,23.0731]
[1718377313567,7.654,145.02,144.97,15.313]
[1718377313781,7.654,145.02,144.97,7.6563]
[1718377313985,12.7568,145.02,144.97,2.552]
[1718377314187,0.34,145.07,144.96,8.9573]
[1718377314188,22.9644,145.01,144.96,8.9573]
[1718377314392,25.516,145.01,144.96,14.0621]
[1718377314691,2.5512,145.03,144.98,15.312]
[1718377314899,25.5109,145.04,144.99,2.5518]
[1718377315075,22.9598,145.04,144.99,2.5518]
[1718377315497,2.5512,145.03,144.99,2.5518]
[1718377315810,2.5513,145.02,144.98,2.552]
[1718377315968,2.5513,145.02,144.97,22.9696]
[1718377316171,2.5513,145.02,144.97,25.5216]
[1718377316473,15.3083,145.02,144.97,2.5521]
[1718377316683,7.6546,145.01,144.96,8.9573]
[1718377316867,2.5517,145.0,144.96,8.9573]
[1718377317174,2.5517,145.0,144.96,8.9574]
[1718377317780,25.5156,145.01,144.96,14.0622]
[1718377317994,7.6544,145.02,144.97,7.6566]
[1718377318295,7.6544,145.02,144.97,15.3133]
[1718377318885,25.5128,145.03,144.98,7.656]
[1718377319091,7.6538,145.03,144.98,25.5204]
[1718377319278,7.6538,145.03,144.98,7.6559]
[1718377319682,15.3073,145.03,144.98,7.6559]
[1718377319869,7.6538,145.03,144.98,7.6559]
[1718377320070,100.0,145.04,144.96,24.2717]
[1718377320291,2.5516,145.01,144.96,31.9286]
[1718377320472,7.6547,145.01,144.96,31.9286]
[1718377320674,7.6547,145.01,144.93,6.1302]
[1718377320675,2.5522,144.97,144.93,6.1302]
[1718377320870,2.5522,144.97,144.92,38.9934]
[1718377320871,2.5525,144.96,144.91,5.1064]
[1718377321104,2.5525,144.96,144.9,22.9805]
[1718377321105,7.6579,144.95,144.9,22.9805]
[1718377321277,7.6579,144.95,144.8,37.610366]
[1718377321278,100.0,144.95,144.86,6.1302]
[1718377321477,22.9755,144.94,144.89,2.5535]
[1718377321889,7.6585,144.94,144.89,7.6608]
[1718377322091,15.3168,144.94,144.89,7.6608]
[1718377322266,22.9751,144.94,144.89,2.5535]
[1718377322474,2.5529,144.93,144.88,25.5374]
[1718377322685,7.6588,144.93,144.88,7.6611]
[1718377322892,2.5531,144.92,144.88,2.5537]
[1718377323076,2.5531,144.92,144.87,25.5391]
[1718377323278,7.6594,144.92,144.87,7.6617]
[1718377323482,15.3188,144.92,144.87,7.6617]
[1718377323669,2.5533,144.91,144.86,29.117]
[1718377323877,2.5533,144.91,144.87,2.5539]
[1718377324340,100.0,144.92,144.82,6.1288]
[1718377324598,2.554,144.87,144.82,11.2384]
[1718377324773,100.0,144.94,144.86,10.2163]
[1718377324977,100.0,144.94,144.82,6.1288]
[1718377324978,22.9822,144.9,144.84,7.6634]
[1718377325322,2.5537,144.89,144.84,7.6634]
[1718377325479,5.1073,144.89,144.82,6.1288]
[1718377325678,100.0,144.9,144.82,6.1288]
[1718377325895,2.5542,144.86,144.81,22.9122]
[1718377326095,2.5543,144.85,144.8,7.6655]
[1718377326302,100.17,144.88,144.8,2.5552]
[1718377326517,2.554,144.87,144.82,7.6644]
[1718377326718,22.9849,144.88,144.83,2.5546]
[1718377326906,22.9849,144.88,144.83,7.6639]
[1718377326907,7.6618,144.88,144.83,7.6639]
[1718377327101,2.554,144.87,144.82,25.5482]
[1718377327412,0.17,144.91,144.78,6.0688]
[1718377327413,16.4222,144.93,144.78,6.0688]
[1718377327715,16.4222,144.93,144.81,25.5499]
[1718377327716,2.5542,144.86,144.81,25.5499]
[1718377328021,5.1085,144.86,144.81,2.555]
[1718377328183,2.5543,144.85,144.81,2.555]
[1718377328390,100.0,144.88,144.78,6.0688]
[1718377328391,2.5547,144.83,144.78,29.0684]
[1718377328593,2.5546,144.84,144.79,15.3323]
[1718377328820,100.0,144.86,144.78,2.5554]
[1718377328988,0.17,144.87,144.76,25.5582]
[1718377328989,2.5551,144.81,144.76,25.5582]
[1718377329320,7.6652,144.81,144.76,7.6675]
[1718377329618,17.8845,144.82,144.76,7.6675]
[1718377329619,25.5494,144.82,144.77,2.5557]
[1718377329923,17.8846,144.82,144.77,2.5557]
[1718377330091,2.555,144.81,144.77,2.5557]
[1718377330299,2.555,144.81,144.76,25.5589]
[1718377330600,25.5493,144.82,144.77,2.5557]
[1718377330791,2.5548,144.83,144.78,15.3332]
[1718377330991,2.5548,144.83,144.78,25.5554]
[1718377331190,22.9925,144.83,144.77,25.5568]
[1718377331391,22.9925,144.83,144.74,7.342054]
[1718377331392,2.5551,144.81,144.76,7.6675]
[1718377331593,2.5551,144.81,144.76,15.3353]
[1718377332024,15.3305,144.81,144.76,2.5558]
[1718377332429,0.17,144.83,144.74,12.454354]
[1718377332585,2.5553,144.8,144.75,25.5607]
[1718377333100,5.11,144.82,144.76,17.8912]
[1718377333420,22.9915,144.84,144.78,12.7775]
[1718377333592,15.3285,144.83,144.78,2.5555]
[1718377333919,7.6637,144.84,144.79,7.6661]
[1718377334090,15.3273,144.84,144.79,2.5553]
[1718377334291,15.3273,144.84,144.79,7.6661]
[1718377334292,7.6637,144.84,144.79,7.6661]
[1718377334612,10.2182,144.84,144.79,2.5553]
[1718377334792,2.5547,144.83,144.79,2.5553]
[1718377335124,2.5547,144.83,144.78,25.5548]
[1718377335619,2.5547,144.83,144.78,22.9994]
[1718377335911,2.5547,144.83,144.79,2.5553]
[1718377336102,7.6641,144.83,144.78,7.6664]
[1718377336620,7.6648,144.82,144.77,2.8957]
[1718377336916,2.5547,144.83,144.79,2.5553]
[1718377337104,2.5547,144.83,144.78,25.5547]
[1718377337298,22.9909,144.84,144.79,2.5553]
[1718377337496,2.5546,144.84,144.79,5.1108]
[1718377337811,7.6641,144.83,144.78,25.5548]
[1718377337998,2.5547,144.83,144.78,25.5548]
[1718377338193,2.5547,144.83,144.78,15.3328]
[1718377338194,7.6641,144.83,144.78,15.3328]
[1718377338416,7.6641,144.83,144.78,7.6663]
[1718377338717,5.1109,144.79,144.74,7.342054]
[1718377338891,5.1109,144.79,144.74,9.898154]
[1718377338892,7.6664,144.79,144.74,9.898154]
[1718377339215,0.17,144.83,144.74,7.342054]
[1718377339216,2.5557,144.77,144.74,7.342054]
[1718377339430,7.6665,144.79,144.74,15.010854]
[1718377339587,100.0,144.82,144.74,0.817954]
[1718377339787,15.3348,144.77,144.74,0.817954]
[1718377340094,2.5558,144.77,144.74,0.817954]
[1718377340589,25.5611,144.75,144.74,0.817954]
[1718377341196,17.8921,144.76,144.74,0.817954]
[1718377341413,7.6683,144.75,144.74,0.817954]
[1718377341604,25.7311,144.75,144.74,0.817954]
[1718377342127,25.5611,144.75,144.74,0.817954]
[1718377342924,12.7801,144.76,144.74,0.817954]
[1718377343104,15.3359,144.76,144.74,0.817954]
[1718377343301,7.6683,144.75,144.74,0.817954]
[1718377343514,15.3366,144.75,144.74,0.817954]
[1718377343701,25.5611,144.75,144.74,0.817954]
[1718377344801,25.5601,144.76,144.74,0.817954]
[1718377345006,2.5561,144.75,144.74,0.817954]
[1718377345407,2.5559,144.77,144.74,0.817954]
[1718377345607,100.0,144.8,144.75,5.112]
[1718377345933,22.9974,144.8,144.74,23.823754]
[1718377346127,7.6663,144.79,144.74,8.486354]
[1718377346337,25.5529,144.8,144.75,2.5561]
[1718377346622,25.5529,144.8,144.74,23.823854]
[1718377346623,2.5554,144.79,144.74,23.823854]
[1718377346813,2.5554,144.79,144.74,26.379954]
[1718377347014,15.3325,144.79,144.74,3.374054]
[1718377347207,25.5542,144.79,144.74,3.374054]
[1718377347408,7.6662,144.79,144.74,8.486654]
[1718377348106,2.5556,144.78,144.74,0.817954]
[1718377348302,25.5611,144.75,144.74,0.817954]
[1718377348610,7.6681,144.76,144.74,0.817954]
[1718377348820,15.3357,144.76,144.74,0.817954]
[1718377349009,7.6679,144.76,144.74,0.817954]
[1718377349201,2.556,144.76,144.74,0.817954]
[1718377349419,15.335,144.77,144.74,0.817954]
[1718377349618,2.5559,144.76,144.74,0.817954]
[1718377350017,25.5582,144.77,144.74,0.817954]
[1718377350223,17.8908,144.77,144.74,0.817954]
[1718377350431,7.6677,144.77,144.74,0.817954]
[1718377350631,25.5611,144.75,144.74,0.817954]
[1718377351137,2.556,144.76,144.74,0.817954]
[1718377351321,15.3349,144.77,144.74,0.817954]
[1718377351510,2.5559,144.76,144.74,0.817954]
[1718377351708,23.0022,144.77,144.74,0.817954]
[1718377351907,23.0037,144.76,144.74,0.817954]
[1718377352122,2.5556,144.78,144.74,0.817954]
[1718377352430,7.6674,144.77,144.74,0.817954]
[1718377352648,100.0,144.82,144.74,0.817954]
[1718377352839,2.5552,144.8,144.75,15.3362]
[1718377353021,22.9961,144.81,144.75,23.0047]
[1718377353217,25.5513,144.81,144.76,2.5559]
[1718377353414,7.6655,144.81,144.76,7.6676]
[1718377353616,15.3307,144.81,144.76,2.5558]
[1718377353830,2.5549,144.82,144.77,7.667]
[1718377354015,25.548,144.83,144.78,2.5555]
[1718377354209,25.548,144.83,144.77,2.5556]
[1718377354210,7.6647,144.82,144.77,2.5556]
[1718377354411,17.8837,144.83,144.76,29.369]
[1718377354412,10.2191,144.83,144.76,16.5899]
[1718377354643,7.6618,144.88,144.81,7.6649]
[1718377354827,22.9863,144.87,144.81,7.665]
[1718377355014,7.6626,144.86,144.8,25.7212]
[1718377355219,17.8782,144.87,144.81,7.8351]
[1718377355420,5.1081,144.87,144.81,15.5003]
[1718377355619,2.5541,144.87,144.81,25.7204]
[1718377355952,12.7737,144.83,144.78,15.1022]
[1718377356238,12.7737,144.83,144.77,2.5557]
[1718377356239,2.5549,144.82,144.77,2.5557]
[1718377356413,100.0,144.83,144.76,6.3666]
[1718377356610,2.5548,144.82,144.77,7.667]
[1718377356831,2.555,144.81,144.76,14.034]
[1718377357038,7.6648,144.82,144.76,14.0342]
[1718377357239,2.555,144.81,144.76,8.9224]
[1718377357433,25.5492,144.82,144.76,11.4784]
[1718377357747,2.5551,144.81,144.76,8.9224]
[1718377357954,2.5553,144.8,144.76,6.3666]
[1718377358114,22.9961,144.81,144.75,2.556]
[1718377358458,2.5552,144.8,144.74,5.930254]
[1718377358616,7.6657,144.8,144.74,26.380154]
[1718377358818,22.9977,144.8,144.74,0.817954]
[1718377359130,2.556,144.76,144.74,0.817954]
[1718377359335,23.0039,144.76,144.74,0.817954]
[1718377359529,25.5611,144.75,144.74,0.817954]
[1718377359963,10.2234,144.77,144.74,0.817954]
[1718377360120,100.34,144.81,144.74,0.817954]
[1718377360443,7.6664,144.79,144.74,0.817954]
[1718377360648,18.2276,144.8,144.74,0.817954]
[1718377360649,7.6679,144.76,144.74,0.817954]
[1718377360816,2.556,144.76,144.74,0.817954]
[1718377361012,25.5611,144.75,144.74,0.817954]
[1718377361214,125.7311,144.75,144.74,0.817954]
[1718377361845,25.7311,144.75,144.74,0.817954]
[1718377362528,7.6683,144.75,144.74,0.817954]
[1718377362740,25.7311,144.75,144.74,0.817954]
[1718377364252,25.5611,144.75,144.74,0.817954]
[1718377364727,125.7311,144.75,144.74,0.817954]
[1718377365052,270.9011,144.75,144.74,0.817954]
[1718377365344,125.5611,144.75,144.74,0.817954]
[1718377365729,125.9011,144.75,144.74,0.817954]
[1718377367442,125.5611,144.75,144.74,0.817954]
[1718377369143,125.9011,144.75,144.74,0.817954]
[1718377369548,171.2411,144.75,144.74,0.817954]
[1718377369844,2.5576,144.67,144.64,6.3428]
[1718377370017,15.3449,144.68,144.64,6.3428]
[1718377370018,7.6713,144.7,144.64,6.3428]
[1718377370219,2.5571,144.69,144.64,29.365]
[1718377370418,2.5569,144.71,144.66,7.6728]
[1718377370616,2.5574,144.68,144.64,6.3428]
[1718377371045,23.0089,144.73,144.67,23.017]
[1718377371236,2.5568,144.71,144.66,23.0187]
[1718377371451,7.6701,144.72,144.67,2.5574]
[1718377371658,7.6698,144.73,144.68,7.672]
[1718377371948,7.669,144.74,144.69,2.5571]
[1718377372253,23.0067,144.74,144.69,2.5571]
[1718377372432,7.669,144.74,144.69,7.6712]